fUST/lending_fUST_20241022
["ID","MTS","AMOUNT","RATE_DAILY","PERIOD"]
[340609772,1729530643009,-238.168373,0.00016438,2]
[340609773,1729530643019,-1221.89,0.00016438,2]
[340609774,1729530643028,-500.0,0.00016438,2]
[340609776,1729530643038,-434.94224412,0.00016438,2]
[340609777,1729530643047,-500.0,0.00016438,2]
[340609778,1729530643057,-500.0,0.00016438,2]
[340609779,1729530643068,-500.0,0.00016438,2]
[340609780,1729530643077,-500.0,0.00016438,2]
[340609781,1729530643087,-500.0,0.00016438,2]
[340609784,1729530643097,-500.0,0.00016438,2]
[340609786,1729530643114,-833.25,0.00016438,2]
[340609788,1729530643123,-805.64,0.00016438,2]
[340609789,1729530643132,-500.0,0.00016438,2]
[340609790,1729530643142,-500.0,0.00016438,2]
[340609791,1729530643151,-1374.1,0.00016438,2]
[340609792,1729530643160,-500.0,0.00016438,2]
[340609793,1729530643169,-1739.42,0.00016438,2]
[340609794,1729530643178,-1859.17,0.00016438,2]
[340609795,1729530643188,-500.0,0.00016438,2]
[340609796,1729530643197,-500.0,0.00016438,2]
[340609798,1729530643206,-516.5148984,0.00016438,2]
[340609799,1729530643216,-500.0,0.00016438,2]
[340609800,1729530643225,-882.84,0.00016438,2]
[340609801,1729530643234,-500.0,0.00016438,2]
[340609802,1729530643244,-581.25,0.00016438,2]
[340609803,1729530643253,-500.0,0.00016438,2]
[340609804,1729530643262,-500.0,0.00016438,2]
[340609805,1729530643272,-1275.42,0.00016438,2]
[340609806,1729530643281,-500.0,0.00016438,2]
[340609807,1729530643291,-1946.86,0.00016438,2]
[340609808,1729530643300,-500.0,0.00016438,2]
[340609809,1729530643310,-500.0,0.00016438,2]
[340609810,1729530643320,-500.0,0.00016438,2]
[340609811,1729530643330,-500.0,0.00016438,2]
[340609812,1729530643340,-804.77,0.00016438,2]
[340609813,1729530643350,-1550.81,0.00016438,2]
[340609814,1729530643359,-500.0,0.00016438,2]
[340609815,1729530643369,-500.0,0.00016438,2]
[340609816,1729530643379,-170.00336,0.00016438,2]
[340609817,1729530643388,-170.00336,0.00016438,2]
[340609818,1729530643399,-170.00336,0.00016438,2]
[340609819,1729530643408,-170.00336,0.00016438,2]
[340609820,1729530643418,-170.00336,0.00016438,2]
[340609824,1729530643637,-170.00336,0.00016438,2]
[340609825,1729530643646,-170.00336,0.00016438,2]
[340609826,1729530643656,-1249.75,0.00016438,2]
[340609827,1729530643665,-170.00336,0.00016438,2]
[340609828,1729530643674,-170.00336,0.00016438,2]
[340609829,1729530643683,-1755.27,0.00016438,2]
[340609830,1729530643692,-170.00336,0.00016438,2]
[340609831,1729530643702,-170.00336,0.00016438,2]
[340609832,1729530643711,-170.00336,0.00016438,2]
[340609833,1729530643721,-170.00336,0.00016438,2]
[340609834,1729530643731,-170.00336,0.00016438,2]
[340609835,1729530643740,-170.00336,0.00016438,2]
[340609836,1729530643749,-170.00336,0.00016438,2]
[340609837,1729530643759,-1139.34,0.00016438,2]
[340609838,1729530643768,-170.00336,0.00016438,2]
[340609839,1729530643778,-170.00336,0.00016438,2]
[340609840,1729530643787,-500.0,0.00016438,2]
[340609841,1729530643796,-170.00336,0.00016438,2]
[340609842,1729530643805,-170.00336,0.00016438,2]
[340609843,1729530643814,-356.93403967,0.00016438,2]
[340609844,1729530643824,-500.0,0.00016438,2]
[340609845,1729530643833,-500.0,0.00016438,2]
[340609846,1729530643842,-151.0,0.00016438,2]
[340609847,1729530643851,-157.507902,0.00016438,2]
[340609849,1729530643860,-1851.65,0.00016438,2]
[340609850,1729530643869,-641.19,0.00016438,2]
[340609851,1729530643878,-942.24,0.00016438,2]
[340609852,1729530643887,-2163.94,0.00016438,2]
[340609853,1729530643896,-500.0,0.00016438,2]
[340609854,1729530643907,-500.0,0.00016438,2]
[340609855,1729530643919,-500.0,0.00016438,2]
[340609856,1729530643928,-500.0,0.00016438,2]
[340609857,1729530643937,-500.0,0.00016438,2]
[340609858,1729530643946,-500.0,0.00016438,2]
[340609859,1729530643956,-500.0,0.00016438,2]
[340609860,1729530643965,-500.0,0.00016438,2]
[340609861,1729530643974,-500.0,0.00016438,2]
[340609862,1729530643985,-500.0,0.00016438,2]
[340609863,1729530643994,-898.34,0.00016438,2]
[340609864,1729530644003,-493.22837232,0.00016438,2]
[340609865,1729530644013,-921.6,0.00016438,2]
[340609866,1729530644022,-1889.85,0.00016438,2]
[340609867,1729530644031,-500.0,0.00016438,2]
[340609868,1729530644041,-807.66,0.00016438,2]
[340609869,1729530644050,-500.0,0.00016438,2]
[340609870,1729530644060,-497.79163688,0.00016438,2]
[340609871,1729530644070,-500.0,0.00016438,2]
[340609872,1729530644080,-500.0,0.00016438,2]
[340609873,1729530644089,-739.46,0.00016438,2]
[340609874,1729530644098,-500.0,0.00016438,2]
[340609875,1729530644107,-500.0,0.00016438,2]
[340609876,1729530644117,-2046.25,0.00016438,2]
[340609877,1729530644127,-1962.73,0.00016438,2]
[340609878,1729530644136,-500.0,0.00016438,2]
[340609879,1729530644146,-500.0,0.00016438,2]
[340609880,1729530644155,-151.0,0.00016438,2]
[340609881,1729530644164,-151.0,0.00016438,2]
[340609882,1729530644174,-151.0,0.00016438,2]
[340609883,1729530644184,-151.0,0.00016438,2]
[340609884,1729530644194,-151.0,0.00016438,2]
[340609885,1729530644203,-967.62,0.00016438,2]
[340609886,1729530644212,-151.0,0.00016438,2]
[340609887,1729530644222,-500.0,0.00016438,2]
[340609888,1729530644231,-500.0,0.00016438,2]
[340609889,1729530644241,-200.0,0.00016438,2]
[340609890,1729530644250,-1764.19,0.00016438,2]
[340609891,1729530644260,-500.0,0.00016438,2]
[340609892,1729530644269,-1289.29,0.00016438,2]
[340609893,1729530644279,-616.16,0.00016438,2]
[340609894,1729530644289,-684.14,0.00016438,2]
[340609895,1729530644302,-500.0,0.00016438,2]
[340609896,1729530644311,-505.85788359,0.00016438,2]
[340609897,1729530644321,-500.0,0.00016438,2]
[340609898,1729530644331,-500.0,0.00016438,2]
[340609899,1729530644341,-500.0,0.00016438,2]
[340609900,1729530644351,-1394.11,0.00016438,2]
[340609901,1729530644361,-500.0,0.00016438,2]
[340609902,1729530644370,-500.0,0.00016438,2]
[340609903,1729530644380,-1842.83,0.00016438,2]
[340609904,1729530644389,-500.0,0.00016438,2]
[340609905,1729530644399,-500.0,0.00016438,2]
[340609906,1729530644408,-1052.84,0.00016438,2]
[340609907,1729530644419,-573.93,0.00016438,2]
[340609908,1729530644430,-500.0,0.00016438,2]
[340609909,1729530644439,-919.14,0.00016438,2]
[340609910,1729530644448,-1499.73,0.00016438,2]
[340609911,1729530644459,-500.0,0.00016438,2]
[340609912,1729530644468,-500.0,0.00016438,2]
[340609913,1729530644477,-500.0,0.00016438,2]
[340609914,1729530644488,-1433.34,0.00016438,2]
[340609915,1729530644498,-772.35,0.00016438,2]
[340609916,1729530644508,-1395.51,0.00016438,2]
[340609917,1729530644518,-679.38,0.00016438,2]
[340609918,1729530644528,-1775.89,0.00016438,2]
[340609919,1729530644538,-570.68118506,0.00016438,2]
[340609920,1729530644549,-500.0,0.00016438,2]
[340609921,1729530644559,-500.0,0.00016438,2]
[340609922,1729530644569,-500.0,0.00016438,2]
[340609923,1729530644579,-500.0,0.00016438,2]
[340609924,1729530644589,-509.47770946,0.00016438,2]
[340609925,1729530644598,-873.49,0.00016438,2]
[340609926,1729530644609,-2455.36,0.00016438,2]
[340609927,1729530644618,-500.0,0.00016438,2]
[340609928,1729530644628,-500.0,0.00016438,2]
[340609929,1729530644639,-2775.56,0.00016438,2]
[340609930,1729530644648,-500.0,0.00016438,2]
[340609931,1729530644658,-2609.24,0.00016438,2]
[340609932,1729530644668,-500.0,0.00016438,2]
[340609933,1729530644678,-171.27028219,0.00016438,2]
[340609934,1729530644687,-152.727195,0.00016438,2]
[340609935,1729530644697,-875.34,0.00016438,2]
[340609936,1729530644707,-500.0,0.00016438,2]
[340609937,1729530644717,-152.727195,0.00016438,2]
[340609938,1729530644727,-152.727195,0.00016438,2]
[340609939,1729530644737,-152.727195,0.00016438,2]
[340609940,1729530644747,-152.727195,0.00016438,2]
[340609941,1729530644756,-165.14769849,0.00016438,2]
[340609942,1729530644766,-152.727195,0.00016438,2]
[340609943,1729530644776,-500.0,0.00016438,2]
[340609944,1729530644785,-152.727195,0.00016438,2]
[340609945,1729530644795,-152.727195,0.00016438,2]
[340609946,1729530644805,-152.727195,0.00016438,2]
[340609947,1729530644817,-582.41570161,0.00016438,2]
[340609948,1729530644828,-152.727195,0.00016438,2]
[340609949,1729530644838,-152.727199,0.00016438,2]
[340609950,1729530644848,-493.0,0.00016438,2]
[340609951,1729530644858,-500.0,0.00016438,2]
[340609952,1729530644867,-344.78784933,0.00016438,2]
[340609953,1729530644878,-500.0,0.00016438,2]
[340609954,1729530644888,-2659.02,0.00016438,2]
[340609955,1729530644898,-500.0,0.00016438,2]
[340609956,1729530644913,-500.0,0.00016438,2]
[340609957,1729530644923,-151.0,0.00016438,2]
[340609958,1729530644935,-1646.74,0.00016438,2]
[340609959,1729530644945,-620.1,0.00016438,2]
[340609960,1729530644955,-908.47,0.00016438,2]
[340609961,1729530644965,-1191.5,0.00016438,2]
[340609962,1729530644974,-500.0,0.00016438,2]
[340609963,1729530644984,-500.0,0.00016438,2]
[340609964,1729530644995,-500.0,0.00016438,2]
[340609965,1729530645005,-770.99,0.00016438,2]
[340609966,1729530645016,-500.0,0.00016438,2]
[340609967,1729530645026,-1838.63,0.00016438,2]
[340609968,1729530645036,-500.0,0.00016438,2]
[340609969,1729530645045,-500.0,0.00016438,2]
[340609970,1729530645055,-820.12,0.00016438,2]
[340609971,1729530645064,-1904.03,0.00016438,2]
[340609972,1729530645074,-500.0,0.00016438,2]
[340609973,1729530645084,-500.0,0.00016438,2]
[340609974,1729530645094,-500.0,0.00016438,2]
[340609975,1729530645104,-713.51,0.00016438,2]
[340609976,1729530645114,-500.0,0.00016438,2]
[340609977,1729530645123,-1237.54,0.00016438,2]
[340609978,1729530645133,-500.0,0.00016438,2]
[340609979,1729530645142,-500.0,0.00016438,2]
[340609980,1729530645152,-500.0,0.00016438,2]
[340609981,1729530645162,-500.0,0.00016438,2]
[340609982,1729530645171,-151.0,0.00016438,2]
[340609983,1729530645181,-151.0,0.00016438,2]
[340609984,1729530645191,-151.0,0.00016438,2]
[340609985,1729530645201,-1046.51,0.00016438,2]
[340609986,1729530645211,-151.0,0.00016438,2]
[340609987,1729530645220,-151.0,0.00016438,2]
[340609988,1729530645231,-154.102843,0.00016438,2]
[340609989,1729530645241,-500.0,0.00016438,2]
[340609990,1729530645250,-665.17,0.00016438,2]
[340609991,1729530645259,-500.0,0.00016438,2]
[340609992,1729530645269,-500.0,0.00016438,2]
[340609993,1729530645279,-500.0,0.00016438,2]
[340609994,1729530645289,-1799.13,0.00016438,2]
[340609995,1729530645299,-735.16,0.00016438,2]
[340609996,1729530645309,-500.0,0.00016438,2]
[340609997,1729530645319,-1652.07,0.00016438,2]
[340609998,1729530645328,-727.55,0.00016438,2]
[340609999,1729530645338,-1156.46,0.00016438,2]
[340610000,1729530645348,-1696.07,0.00016438,2]
[340610001,1729530645357,-501.65059839,0.00016438,2]
[340610002,1729530645367,-2271.75,0.00016438,2]
[340610003,1729530645377,-500.0,0.00016438,2]
[340610004,1729530645387,-311.534136,0.00016438,2]
[340610005,1729530645398,-1532.81,0.00016438,2]
[340610006,1729530645408,-311.534136,0.00016438,2]
[340610007,1729530645418,-500.0,0.00016438,2]
[340610008,1729530645428,-311.534136,0.00016438,2]
[340610009,1729530645438,-311.534136,0.00016438,2]
[340610010,1729530645448,-311.534136,0.00016438,2]
[340610011,1729530645457,-311.534136,0.00016438,2]
[340610012,1729530645467,-311.534136,0.00016438,2]
[340610013,1729530645476,-311.534136,0.00016438,2]
[340610014,1729530645486,-311.534136,0.00016438,2]
[340610015,1729530645496,-574.35,0.00016438,2]
[340610016,1729530645506,-1848.74,0.00016438,2]
[340610017,1729530645517,-311.534136,0.00016438,2]
[340610018,1729530645527,-311.534136,0.00016438,2]
[340610019,1729530645536,-500.0,0.00016438,2]
[340610020,1729530645546,-311.534136,0.00016438,2]
[340610021,1729530645557,-500.0,0.00016438,2]
[340610022,1729530645568,-311.534136,0.00016438,2]
[340610023,1729530645578,-311.534136,0.00016438,2]
[340610024,1729530645589,-311.534136,0.00016438,2]
[340610025,1729530645600,-996.12,0.00016438,2]
[340610026,1729530645610,-577.47067576,0.00016438,2]
[340610027,1729530645620,-311.534136,0.00016438,2]
[340610028,1729530645629,-311.534136,0.00016438,2]
[340610029,1729530645639,-311.534136,0.00016438,2]
[340610030,1729530645649,-311.534136,0.00016438,2]
[340610031,1729530645658,-311.534126,0.00016438,2]
[340610032,1729530645668,-500.0,0.00016438,2]
[340610033,1729530645677,-2520.86,0.00016438,2]
[340610034,1729530645687,-500.0,0.00016438,2]
[340610035,1729530645697,-500.0,0.00016438,2]
[340610036,1729530645706,-692.17,0.00016438,2]
[340610037,1729530645715,-500.0,0.00016438,2]
[340610038,1729530645726,-500.0,0.00016438,2]
[340610039,1729530645735,-544.41,0.00016438,2]
[340610040,1729530645745,-500.0,0.00016438,2]
[340610041,1729530645754,-1757.8,0.00016438,2]
[340610042,1729530645764,-1869.57,0.00016438,2]
[340610043,1729530645773,-500.0,0.00016438,2]
[340610044,1729530645783,-500.0,0.00016438,2]
[340610045,1729530645794,-198.867673,0.00016438,2]
[340610046,1729530645803,-198.867673,0.00016438,2]
[340610047,1729530645814,-747.76,0.00016438,2]
[340610048,1729530645825,-198.867673,0.00016438,2]
[340610049,1729530645834,-198.867673,0.00016438,2]
[340610050,1729530645843,-198.867673,0.00016438,2]
[340610051,1729530645853,-198.867673,0.00016438,2]
[340610052,1729530645863,-271.56203779,0.00016438,2]
[340610053,1729530645872,-1300.69,0.00016438,2]
[340610054,1729530645881,-198.867673,0.00016438,2]
[340610055,1729530645890,-198.867673,0.00016438,2]
[340610056,1729530645899,-198.867673,0.00016438,2]
[340610057,1729530645911,-500.0,0.00016438,2]
[340610058,1729530645921,-198.867673,0.00016438,2]
[340610059,1729530645930,-198.867673,0.00016438,2]
[340610060,1729530645939,-2546.5,0.00016438,2]
[340610061,1729530645949,-198.867673,0.00016438,2]
[340610062,1729530645959,-198.867673,0.00016438,2]
[340610063,1729530645968,-198.867673,0.00016438,2]
[340610064,1729530645978,-198.867673,0.00016438,2]
[340610065,1729530645989,-198.867673,0.00016438,2]
[340610066,1729530645998,-198.867673,0.00016438,2]
[340610067,1729530646008,-198.867674,0.00016438,2]
[340610068,1729530646018,-500.0,0.00016438,2]
[340610069,1729530646028,-359.93930305,0.00016438,2]
[340610070,1729530646038,-575.09630823,0.00016438,2]
[340610071,1729530646048,-1026.11,0.00016438,2]
[340610072,1729530646058,-500.0,0.00016438,2]
[340610073,1729530646068,-500.0,0.00016438,2]
[340610074,1729530646077,-500.0,0.00016438,2]
[340610075,1729530646087,-151.0,0.00016438,2]
[340610076,1729530646096,-151.0,0.00016438,2]
[340610078,1729530646106,-500.0,0.00016438,2]
[340610080,1729530646116,-151.0,0.00016438,2]
[340610082,1729530646124,-151.0,0.00016438,2]
[340610083,1729530646134,-151.0,0.00016438,2]
[340610084,1729530646143,-1610.61,0.00016438,2]
[340610085,1729530646153,-151.0,0.00016438,2]
[340610087,1729530646163,-151.0,0.00016438,2]
[340610088,1729530646172,-598.79,0.00016438,2]
[340610089,1729530646182,-500.0,0.00016438,2]
[340610090,1729530646191,-500.0,0.00016438,2]
[340610091,1729530646202,-500.0,0.00016438,2]
[340610092,1729530646211,-151.0,0.00016438,2]
[340610093,1729530646221,-151.0,0.00016438,2]
[340610094,1729530646230,-151.0,0.00016438,2]
[340610095,1729530646240,-151.0,0.00016438,2]
[340610096,1729530646249,-151.0,0.00016438,2]
[340610097,1729530646259,-500.0,0.00016438,2]
[340610098,1729530646269,-1197.5,0.00016438,2]
[340610100,1729530646279,-151.0,0.00016438,2]
[340610101,1729530646289,-176.426445,0.00016438,2]
[340610102,1729530646299,-736.38,0.00016438,2]
[340610103,1729530646308,-658.48,0.00016438,2]
[340610104,1729530646317,-1027.34,0.00016438,2]
[340610105,1729530646327,-1357.89,0.00016438,2]
[340610106,1729530646337,-500.0,0.00016438,2]
[340610107,1729530646346,-573.09,0.00016438,2]
[340610108,1729530646356,-1936.56,0.00016438,2]
[340610109,1729530646365,-151.0,0.00016438,2]
[340610110,1729530646374,-151.0,0.00016438,2]
[340610111,1729530646384,-151.0,0.00016438,2]
[340610112,1729530646394,-151.0,0.00016438,2]
[340610113,1729530646403,-151.0,0.00016438,2]
[340610114,1729530646412,-151.0,0.00016438,2]
[340610115,1729530646422,-151.0,0.00016438,2]
[340610116,1729530646431,-151.0,0.00016438,2]
[340610118,1729530646441,-151.0,0.00016438,2]
[340610120,1729530646451,-293.548386,0.00016438,2]
[340610122,1729530646461,-500.0,0.00016438,2]
[340610123,1729530646471,-500.0,0.00016438,2]
[340610124,1729530646480,-500.0,0.00016438,2]
[340610125,1729530646489,-500.0,0.00016438,2]
[340610127,1729530646500,-551.31721363,0.00016438,2]
[340610128,1729530646510,-500.0,0.00016438,2]
[340610129,1729530646519,-1109.73,0.00016438,2]
[340610130,1729530646529,-500.0,0.00016438,2]
[340610131,1729530646539,-3000.0,0.00016438,2]
[340610132,1729530646548,-505.682004,0.00016438,2]
[340610133,1729530646558,-711.9,0.00016438,2]
[340610134,1729530646568,-644.0,0.00016438,2]
[340610135,1729530646577,-3809.76,0.00016438,2]
[340610136,1729530646587,-500.0,0.00016438,2]
[340610137,1729530646596,-1522.01,0.00016438,2]
[340610138,1729530646606,-543.04168596,0.00016438,2]
[340610139,1729530646616,-151.0,0.00016438,2]
[340610140,1729530646626,-151.0,0.00016438,2]
[340610141,1729530646636,-500.0,0.00016438,2]
[340610142,1729530646646,-151.0,0.00016438,2]
[340610143,1729530646657,-829.78,0.00016438,2]
[340610144,1729530646667,-151.0,0.00016438,2]
[340610145,1729530646678,-500.0,0.00016438,2]
[340610146,1729530646689,-151.0,0.00016438,2]
[340610147,1729530646698,-151.0,0.00016438,2]
[340610148,1729530646709,-1000.0,0.00016438,2]
[340610149,1729530646719,-271.557097,0.00016438,2]
[340610150,1729530646728,-500.0,0.00016438,2]
[340610151,1729530646737,-1932.93,0.00016438,2]
[340610152,1729530646746,-500.0,0.00016438,2]
[340610153,1729530646756,-500.0,0.00016438,2]
[340610154,1729530646766,-500.0,0.00016438,2]
[340610155,1729530646775,-500.0,0.00016438,2]
[340610156,1729530646784,-500.0,0.00016438,2]
[340610157,1729530646794,-629.88,0.00016438,2]
[340610158,1729530646803,-501.05908773,0.00016438,2]
[340610159,1729530646813,-932.15,0.00016438,2]
[340610160,1729530646823,-3260.33,0.00016438,2]
[340610161,1729530646833,-175.331683,0.00016438,2]
[340610162,1729530646842,-175.331683,0.00016438,2]
[340610163,1729530646851,-1685.22,0.00016438,2]
[340610164,1729530646861,-175.331683,0.00016438,2]
[340610165,1729530646872,-175.331684,0.00016438,2]
[340610166,1729530646881,-500.0,0.00016438,2]
[340610167,1729530646891,-1226.1,0.00016438,2]
[340610168,1729530646901,-151.0,0.00016438,2]
[340610169,1729530646912,-234.91838,0.00016438,2]
[340610170,1729530646924,-646.21,0.00016438,2]
[340610171,1729530646933,-274.94164002,0.00016438,2]
[340610172,1729530646943,-500.0,0.00016438,2]
[340610173,1729530646953,-1425.6,0.00016438,2]
[340610174,1729530646964,-1870.76,0.00016438,2]
[340610175,1729530646974,-500.0,0.00016438,2]
[340610176,1729530646983,-667.52,0.00016438,2]
[340610177,1729530646995,-2078.37,0.00016438,2]
[340610178,1729530647006,-500.0,0.00016438,2]
[340610179,1729530647015,-620.01,0.00016438,2]
[340610180,1729530647025,-900.68,0.00016438,2]
[340610181,1729530647034,-8556.14,0.00016438,2]
[340610182,1729530647044,-1134.44,0.00016438,2]
[340610183,1729530647053,-942.08,0.00016438,2]
[340610184,1729530647063,-500.0,0.00016438,2]
[340610185,1729530647072,-706.96,0.00016438,2]
[340610186,1729530647082,-1657.6,0.00016438,2]
[340610187,1729530647092,-500.0,0.00016438,2]
[340610188,1729530647102,-929.23,0.00016438,2]
[340610189,1729530647112,-711.8,0.00016438,2]
[340610190,1729530647122,-1839.04,0.00016438,2]
[340610191,1729530647132,-1195.81,0.00016438,2]
[340610192,1729530647142,-2310.11,0.00016438,2]
[340610193,1729530647152,-2051.29,0.00016438,2]
[340610194,1729530647161,-967.77,0.00016438,2]
[340610195,1729530647171,-500.0,0.00016438,2]
[340610196,1729530647181,-500.0,0.00016438,2]
[340610197,1729530647191,-1532.97,0.00016438,2]
[340610198,1729530647200,-500.0,0.00016438,2]
[340610199,1729530647211,-4049.28,0.00016438,2]
[340610200,1729530647220,-837.25,0.00016438,2]
[340610201,1729530647230,-500.0,0.00016438,2]
[340610202,1729530647240,-1378.08,0.00016438,2]
[340610203,1729530647250,-500.0,0.00016438,2]
[340610204,1729530647259,-357.159162,0.00016438,2]
[340610205,1729530647269,-691.13,0.00016438,2]
[340610206,1729530647279,-357.159162,0.00016438,2]
[340610207,1729530647288,-357.159162,0.00016438,2]
[340610208,1729530647297,-357.159162,0.00016438,2]
[340610209,1729530647307,-357.159162,0.00016438,2]
[340610210,1729530647316,-357.159162,0.00016438,2]
[340610211,1729530647325,-2910.41,0.00016438,2]
[340610212,1729530647334,-357.159162,0.00016438,2]
[340610213,1729530647343,-357.159162,0.00016438,2]
[340610214,1729530647353,-357.159162,0.00016438,2]
[340610215,1729530647362,-1060.97,0.00016438,2]
[340610216,1729530647373,-357.159162,0.00016438,2]
[340610217,1729530647382,-357.159162,0.00016438,2]
[340610218,1729530647391,-500.0,0.00016438,2]
[340610219,1729530647401,-1528.9,0.00016438,2]
[340610220,1729530647410,-357.159162,0.00016438,2]
[340610221,1729530647419,-357.159162,0.00016438,2]
[340610222,1729530647429,-357.159162,0.00016438,2]
[340610223,1729530647438,-685.73,0.00016438,2]
[340610224,1729530647448,-357.159162,0.00016438,2]
[340610225,1729530647458,-357.159162,0.00016438,2]
[340610226,1729530647468,-357.159162,0.00016438,2]
[340610227,1729530647476,-357.159158,0.00016438,2]
[340610228,1729530647487,-500.0,0.00016438,2]
[340610229,1729530647496,-650.14,0.00016438,2]
[340610230,1729530647506,-1050.28,0.00016438,2]
[340610231,1729530647516,-2115.6,0.00016438,2]
[340610232,1729530647525,-648.75,0.00016438,2]
[340610233,1729530647535,-500.0,0.00016438,2]
[340610234,1729530647544,-2035.95,0.00016438,2]
[340610235,1729530647553,-758.97,0.00016438,2]
[340610236,1729530647563,-500.0,0.00016438,2]
[340610237,1729530647572,-3333.09,0.00016438,2]
[340610238,1729530647582,-904.65,0.00016438,2]
[340610239,1729530647591,-500.0,0.00016438,2]
[340610240,1729530647601,-885.43,0.00016438,2]
[340610241,1729530647611,-151.0,0.00016438,2]
[340610242,1729530647622,-500.0,0.00016438,2]
[340610243,1729530647806,-500.0,0.00016438,2]
[340610244,1729530647817,-1034.39,0.00016438,2]
[340610245,1729530647826,-500.0,0.00016438,2]
[340610246,1729530647836,-151.0,0.00016438,2]
[340610247,1729530647846,-1022.01,0.00016438,2]
[340610248,1729530647856,-500.0,0.00016438,2]
[340610249,1729530647866,-151.0,0.00016438,2]
[340610250,1729530647875,-151.0,0.00016438,2]
[340610251,1729530647886,-500.0,0.00016438,2]
[340610252,1729530647896,-163.417314,0.00016438,2]
[340610253,1729530647905,-500.0,0.00016438,2]
[340610254,1729530647917,-825.71,0.00016438,2]
[340610255,1729530647927,-539.29415277,0.00016438,2]
[340610256,1729530647936,-221.313894,0.00016438,2]
[340610257,1729530647946,-1591.64,0.00016438,2]
[340610258,1729530647957,-858.8,0.00016438,2]
[340610259,1729530647966,-519.34,0.00016438,2]
[340610260,1729530647976,-500.0,0.00016438,2]
[340610261,1729530647986,-1461.86,0.00016438,2]
[340610262,1729530647995,-500.0,0.00016438,2]
[340610263,1729530648005,-500.0,0.00016438,2]
[340610264,1729530648015,-500.0,0.00016438,2]
[340610265,1729530648025,-500.0,0.00016438,2]
[340610266,1729530648034,-151.0,0.00016438,2]
[340610267,1729530648043,-151.0,0.00016438,2]
[340610268,1729530648053,-595.39,0.00016438,2]
[340610269,1729530648063,-151.0,0.00016438,2]
[340610270,1729530648073,-2068.58,0.00016438,2]
[340610271,1729530648083,-946.19,0.00016438,2]
[340610272,1729530648093,-1514.73,0.00016438,2]
[340610273,1729530648103,-1546.92,0.00016438,2]
[340610274,1729530648113,-607.629806,0.00016438,2]
[340610275,1729530648123,-607.629806,0.00016438,2]
[340610276,1729530648133,-607.629806,0.00016438,2]
[340610277,1729530648143,-607.629806,0.00016438,2]
[340610278,1729530648153,-607.629806,0.00016438,2]
[340610279,1729530648163,-607.629806,0.00016438,2]
[340610280,1729530648174,-607.629806,0.00016438,2]
[340610281,1729530648185,-607.629806,0.00016438,2]
[340610282,1729530648195,-607.629806,0.00016438,2]
[340610283,1729530648205,-1242.99,0.00016438,2]
[340610284,1729530648217,-151.0,0.00016438,2]
[340610285,1729530648227,-151.0,0.00016438,2]
[340610286,1729530648237,-607.629806,0.00016438,2]
[340610287,1729530648247,-151.0,0.00016438,2]
[340610288,1729530648257,-607.629806,0.00016438,2]
[340610289,1729530648267,-151.0,0.00016438,2]
[340610290,1729530648277,-607.629806,0.00016438,2]